[Event "Titled Tuesday Blitz October 11 Early 2022"]
[White "Petesch, Gabriel"]
[Black "Antonio, Jorge Carlos"]
[WhiteFideId "2032465"]
[BlackFideId "113190"]
[WhiteElo "2374"]
[BlackElo "2247"]
[Result "1-0"]
[Round "08"]
[TimeControl "180+1"]
[Date "2022.10.12"]
[WhiteClock "0:00:14"]
[BlackClock "0:00:09"]

1. d3 {[%clk 0:03:00]}  e5 {[%clk 0:02:58]} 2. f4 {[%clk 0:02:59]}  Nc6 {[%clk 0:02:57]} 3. Nf3 {[%clk 0:02:55]}  d6 {[%clk 0:02:53]} 4. Nc3 {[%clk 0:02:46]}  g6 {[%clk 0:02:50]} 5. g3 {[%clk 0:02:40]}  Bg7 {[%clk 0:02:46]} 6. Bg2 {[%clk 0:02:38]}  Nge7 {[%clk 0:02:41]} 7. Be3 {[%clk 0:02:36]}  Nf5 {[%clk 0:02:40]} 8. Bf2 {[%clk 0:02:30]}  exf4 {[%clk 0:02:39]} 9. gxf4 {[%clk 0:02:29]}  O-O {[%clk 0:02:36]} 10. Qd2 {[%clk 0:02:24]}  Re8 {[%clk 0:02:34]} 11. h4 {[%clk 0:02:14]}  h5 {[%clk 0:02:32]} 12. O-O-O {[%clk 0:02:12]}  Qe7 {[%clk 0:02:21]} 13. Nd5 {[%clk 0:02:05]}  Qd8 {[%clk 0:02:20]} 14. e4 {[%clk 0:01:58]}  Nfe7 {[%clk 0:02:13]} 15. Ne3 {[%clk 0:01:53]}  d5 {[%clk 0:02:09]} 16. Ng5 {[%clk 0:01:39]}  d4 {[%clk 0:02:05]} 17. Nc4 {[%clk 0:01:25]}  Bg4 {[%clk 0:02:05]} 18. Rde1 {[%clk 0:01:14]}  Qd7 {[%clk 0:01:59]} 19. Kb1 {[%clk 0:01:14]}  b5 {[%clk 0:01:43]} 20. Na3 {[%clk 0:01:11]}  a6 {[%clk 0:01:41]} 21. f5 {[%clk 0:01:11]}  gxf5 {[%clk 0:01:34]} 22. Rhg1 {[%clk 0:01:09]}  Ng6 {[%clk 0:01:25]} 23. Bg3 {[%clk 0:01:02]}  f4 {[%clk 0:01:22]} 24. Bxf4 {[%clk 0:01:00]}  Nxf4 {[%clk 0:01:19]} 25. Qxf4 {[%clk 0:01:01]}  Ne5 {[%clk 0:01:15]} 26. Ka1 {[%clk 0:00:42]}  c5 {[%clk 0:01:12]} 27. Nf3 {[%clk 0:00:39]}  Nxf3 {[%clk 0:01:09]} 28. Bxf3 {[%clk 0:00:37]}  f5 {[%clk 0:00:58]} 29. exf5 {[%clk 0:00:32]}  Qxf5 {[%clk 0:00:57]} 30. Qxf5 {[%clk 0:00:29]}  Bxf5 {[%clk 0:00:55]} 31. Bxa8 {[%clk 0:00:28]}  Rxa8 {[%clk 0:00:54]} 32. Nb1 {[%clk 0:00:26]}  Bg4 {[%clk 0:00:53]} 33. Nd2 {[%clk 0:00:26]}  Rf8 {[%clk 0:00:49]} 34. Rgf1 {[%clk 0:00:25]}  Rc8 {[%clk 0:00:45]} 35. Ne4 {[%clk 0:00:25]}  c4 {[%clk 0:00:38]} 36. Nf2 {[%clk 0:00:24]}  cxd3 {[%clk 0:00:30]} 37. cxd3 {[%clk 0:00:23]}  Bf3 {[%clk 0:00:20]} 38. Rg1 {[%clk 0:00:23]}  Kh7 {[%clk 0:00:18]} 39. Re7 {[%clk 0:00:22]}  Rg8 {[%clk 0:00:16]} 40. Ne4 {[%clk 0:00:21]}  Bg4 {[%clk 0:00:16]} 41. Nf6+ {[%clk 0:00:20]}  Kh8 {[%clk 0:00:14]} 42. Nxg8 {[%clk 0:00:21]}  Kxg8 {[%clk 0:00:15]} 43. Ra7 {[%clk 0:00:20]}  Bh6 {[%clk 0:00:12]} 44. Rxa6 {[%clk 0:00:20]}  Be3 {[%clk 0:00:13]} 45. Rf1 {[%clk 0:00:19]}  Kg7 {[%clk 0:00:13]} 46. Rb6 {[%clk 0:00:17]}  Be2 {[%clk 0:00:12]} 47. Rff6 {[%clk 0:00:16]}  Bxd3 {[%clk 0:00:12]} 48. Rfc6 {[%clk 0:00:16]}  Bc4 {[%clk 0:00:11]} 49. Rb7+ {[%clk 0:00:16]}  Kf8 {[%clk 0:00:09]} 50. Rc8# {[%clk 0:00:14]} 1-0


[Site "https://www.chess.com"]

[Event "Titled Tuesday Blitz October 11 Early 2022"]
[White "Pinheiro, Iung Alicio de O."]
[Black "De Souza, Cristiano Gomes"]
[WhiteFideId "2104350"]
[BlackFideId "2151758"]
[WhiteElo "2283"]
[BlackElo "2068"]
[Result "1-0"]
[Round "08"]
[TimeControl "180+1"]
[Date "2022.10.12"]
[WhiteClock "0:01:10"]
[BlackClock "0:01:24"]

1. e4 {[%clk 0:03:00]}  c5 {[%clk 0:02:59]} 2. Nf3 {[%clk 0:02:58]}  d6 {[%clk 0:02:58]} 3. Nc3 {[%clk 0:02:58]}  Nf6 {[%clk 0:02:54]} 4. e5 {[%clk 0:02:56]}  dxe5 {[%clk 0:02:54]} 5. Nxe5 {[%clk 0:02:57]}  g6 {[%clk 0:02:53]} 6. Bb5+ {[%clk 0:02:53]}  Nbd7 {[%clk 0:02:51]} 7. d4 {[%clk 0:02:49]}  cxd4 {[%clk 0:02:50]} 8. Qxd4 {[%clk 0:02:49]}  Bg7 {[%clk 0:02:49]} 9. O-O {[%clk 0:02:06]}  O-O {[%clk 0:02:49]} 10. Rd1 {[%clk 0:02:04]}  a6 {[%clk 0:02:39]} 11. Bxd7 {[%clk 0:01:42]}  Nxd7 {[%clk 0:02:38]} 12. Bf4 {[%clk 0:01:42]}  Qb6 {[%clk 0:02:23]} 13. Qe4 {[%clk 0:01:23]}  Nxe5 {[%clk 0:02:07]} 14. Bxe5 {[%clk 0:01:23]}  Bxe5 {[%clk 0:01:55]} 15. Qxe5 {[%clk 0:01:23]}  Qxb2 {[%clk 0:01:46]} 16. Rab1 {[%clk 0:01:15]}  Qa3 {[%clk 0:01:42]} 17. Nd5 {[%clk 0:01:14]}  Qd6 {[%clk 0:01:41]} 18. Nxe7+ {[%clk 0:01:12]}  Qxe7 {[%clk 0:01:27]} 19. Qxe7 {[%clk 0:01:13]}  b5 {[%clk 0:01:26]} 20. Rd8 {[%clk 0:01:11]}  Rxd8 {[%clk 0:01:23]} 21. Qxd8+ {[%clk 0:01:12]}  Kg7 {[%clk 0:01:24]} 22. Qd5 {[%clk 0:01:10]} 1-0


[Site "https://www.chess.com"]

[Event "Titled Tuesday Blitz October 11 Early 2022"]
[White "Poltorak, Sebastian"]
[Black "Carrasco Miranda, Andres"]
[WhiteFideId "1199498"]
[BlackFideId "3405990"]
[WhiteElo "2232"]
[BlackElo "2183"]
[Result "0-1"]
[Round "08"]
[TimeControl "180+1"]
[Date "2022.10.12"]
[WhiteClock "0:00:49"]
[BlackClock "0:00:36"]

1. a3 {[%clk 0:02:57]}  g6 {[%clk 0:02:53]} 2. e4 {[%clk 0:02:51]}  Bg7 {[%clk 0:02:50]} 3. Nf3 {[%clk 0:02:51]}  c5 {[%clk 0:02:50]} 4. Bc4 {[%clk 0:02:52]}  Nc6 {[%clk 0:02:48]} 5. O-O {[%clk 0:02:52]}  e6 {[%clk 0:02:46]} 6. Re1 {[%clk 0:02:50]}  Nge7 {[%clk 0:02:46]} 7. Nc3 {[%clk 0:02:49]}  O-O {[%clk 0:02:46]} 8. d3 {[%clk 0:02:48]}  d5 {[%clk 0:02:46]} 9. Ba2 {[%clk 0:02:48]}  b6 {[%clk 0:02:42]} 10. Bg5 {[%clk 0:02:47]}  h6 {[%clk 0:02:37]} 11. Bh4 {[%clk 0:02:44]}  g5 {[%clk 0:02:19]} 12. Bg3 {[%clk 0:02:43]}  d4 {[%clk 0:02:19]} 13. Nb1 {[%clk 0:02:41]}  Ng6 {[%clk 0:02:19]} 14. Nbd2 {[%clk 0:02:38]}  g4 {[%clk 0:02:05]} 15. Nc4 {[%clk 0:02:27]}  gxf3 {[%clk 0:02:05]} 16. Qxf3 {[%clk 0:02:28]}  Nce5 {[%clk 0:02:02]} 17. Nxe5 {[%clk 0:02:27]}  Nxe5 {[%clk 0:02:02]} 18. Qh5 {[%clk 0:02:27]}  Qg5 {[%clk 0:01:53]} 19. Qe2 {[%clk 0:02:26]}  Ng6 {[%clk 0:01:53]} 20. Rf1 {[%clk 0:02:25]}  Nf4 {[%clk 0:01:50]} 21. Qf3 {[%clk 0:02:25]}  e5 {[%clk 0:01:48]} 22. h4 {[%clk 0:02:25]}  Qf6 {[%clk 0:01:43]} 23. Rae1 {[%clk 0:02:16]}  Nh3+ {[%clk 0:01:40]} 24. Kh1 {[%clk 0:02:15]}  Qxf3 {[%clk 0:01:40]} 25. gxf3 {[%clk 0:02:16]}  Nf4 {[%clk 0:01:40]} 26. Bxf4 {[%clk 0:02:08]}  exf4 {[%clk 0:01:41]} 27. Rg1 {[%clk 0:01:57]}  Be6 {[%clk 0:01:41]} 28. Bxe6 {[%clk 0:01:55]}  fxe6 {[%clk 0:01:42]} 29. Rg6 {[%clk 0:01:56]}  Rf6 {[%clk 0:01:40]} 30. Rg4 {[%clk 0:01:56]}  Kh7 {[%clk 0:01:11]} 31. Reg1 {[%clk 0:01:55]}  Bh8 {[%clk 0:01:09]} 32. h5 {[%clk 0:01:27]}  Rc8 {[%clk 0:01:04]} 33. Kh2 {[%clk 0:01:25]}  c4 {[%clk 0:01:02]} 34. R1g2 {[%clk 0:01:19]}  cxd3 {[%clk 0:01:02]} 35. cxd3 {[%clk 0:01:19]}  Rc7 {[%clk 0:00:59]} 36. Rg8 {[%clk 0:01:19]}  Rc5 {[%clk 0:00:51]} 37. Ra8 {[%clk 0:01:06]}  Rxh5+ {[%clk 0:00:51]} 38. Kg1 {[%clk 0:01:06]}  Rf7 {[%clk 0:00:50]} 39. Kf1 {[%clk 0:00:55]}  Rg5 {[%clk 0:00:49]} 40. Rxg5 {[%clk 0:00:52]}  hxg5 {[%clk 0:00:48]} 41. Ke2 {[%clk 0:00:53]}  Bf6 {[%clk 0:00:42]} 42. Re8 {[%clk 0:00:52]}  Re7 {[%clk 0:00:42]} 43. Rf8 {[%clk 0:00:52]}  Kg7 {[%clk 0:00:42]} 44. Rc8 {[%clk 0:00:52]}  Be5 {[%clk 0:00:39]} 45. Kd2 {[%clk 0:00:51]}  Rc7 {[%clk 0:00:39]} 46. Ra8 {[%clk 0:00:49]}  g4 {[%clk 0:00:36]} 47. fxg4 {[%clk 0:00:49]}  f3 {[%clk 0:00:36]} 0-1


[Site "https://www.chess.com"]

[Event "Titled Tuesday Blitz October 11 Early 2022"]
[White "Przybylski, Wojciech"]
[Black "Aizpurua, Patrick Emilio"]
[WhiteFideId "1117599"]
[BlackFideId "6600522"]
[WhiteElo "2221"]
[BlackElo "2378"]
[Result "0-1"]
[Round "08"]
[TimeControl "180+1"]
[Date "2022.10.12"]
[WhiteClock "0:00:02"]
[BlackClock "0:00:36"]

1. e4 {[%clk 0:03:00]}  e6 {[%clk 0:03:00]} 2. d4 {[%clk 0:02:57]}  d5 {[%clk 0:02:59]} 3. Nc3 {[%clk 0:02:56]}  Bb4 {[%clk 0:02:59]} 4. a3 {[%clk 0:02:47]}  Bxc3+ {[%clk 0:02:57]} 5. bxc3 {[%clk 0:02:48]}  dxe4 {[%clk 0:02:57]} 6. Qg4 {[%clk 0:02:48]}  Nf6 {[%clk 0:02:53]} 7. Qxg7 {[%clk 0:02:47]}  Rg8 {[%clk 0:02:53]} 8. Qh6 {[%clk 0:02:47]}  Rg6 {[%clk 0:02:54]} 9. Qe3 {[%clk 0:02:47]}  b6 {[%clk 0:02:52]} 10. c4 {[%clk 0:02:46]}  Bb7 {[%clk 0:02:52]} 11. Qc3 {[%clk 0:02:45]}  Nc6 {[%clk 0:02:33]} 12. Ne2 {[%clk 0:02:41]}  Qd7 {[%clk 0:02:24]} 13. h3 {[%clk 0:02:40]}  O-O-O {[%clk 0:02:23]} 14. Be3 {[%clk 0:02:38]}  Na5 {[%clk 0:02:15]} 15. O-O-O {[%clk 0:02:29]}  Qa4 {[%clk 0:02:10]} 16. Nf4 {[%clk 0:02:27]}  Rgg8 {[%clk 0:02:09]} 17. Qb4 {[%clk 0:02:25]}  Qd7 {[%clk 0:02:04]} 18. Be2 {[%clk 0:02:19]}  Nc6 {[%clk 0:01:51]} 19. Qc3 {[%clk 0:02:17]}  Qe7 {[%clk 0:01:48]} 20. d5 {[%clk 0:01:52]}  exd5 {[%clk 0:01:49]} 21. cxd5 {[%clk 0:01:51]}  Qe5 {[%clk 0:01:41]} 22. Qxe5 {[%clk 0:01:41]}  Nxe5 {[%clk 0:01:42]} 23. c4 {[%clk 0:01:34]}  Ba6 {[%clk 0:01:41]} 24. Bd4 {[%clk 0:01:10]}  Nfd7 {[%clk 0:01:39]} 25. d6 {[%clk 0:00:52]}  c6 {[%clk 0:01:25]} 26. c5 {[%clk 0:00:49]}  Bxe2 {[%clk 0:01:25]} 27. Nxe2 {[%clk 0:00:49]}  Nd3+ {[%clk 0:01:23]} 28. Kc2 {[%clk 0:00:45]}  bxc5 {[%clk 0:01:22]} 29. Be3 {[%clk 0:00:44]}  Rxg2 {[%clk 0:01:22]} 30. Nc3 {[%clk 0:00:39]}  f5 {[%clk 0:01:17]} 31. Ne2 {[%clk 0:00:24]}  Rf8 {[%clk 0:01:10]} 32. Rxd3 {[%clk 0:00:18]}  exd3+ {[%clk 0:01:10]} 33. Kxd3 {[%clk 0:00:19]}  Ne5+ {[%clk 0:01:05]} 34. Kc3 {[%clk 0:00:18]}  c4 {[%clk 0:00:59]} 35. Nf4 {[%clk 0:00:08]}  Rgg8 {[%clk 0:00:57]} 36. Ne6 {[%clk 0:00:07]}  Rf6 {[%clk 0:00:50]} 37. Nf4 {[%clk 0:00:07]}  Rxd6 {[%clk 0:00:48]} 38. Rb1 {[%clk 0:00:06]}  Rd7 {[%clk 0:00:45]} 39. Bd4 {[%clk 0:00:06]}  Nd3 {[%clk 0:00:43]} 40. Ne6 {[%clk 0:00:05]}  c5 {[%clk 0:00:41]} 41. Be3 {[%clk 0:00:05]}  f4 {[%clk 0:00:39]} 42. Nxf4 {[%clk 0:00:05]}  Nxf4 {[%clk 0:00:36]} 43. Bxf4 {[%clk 0:00:06]}  Rd3+ {[%clk 0:00:36]} 44. Kxc4 {[%clk 0:00:06]}  Rd4+ {[%clk 0:00:37]} 45. Kxc5 {[%clk 0:00:06]}  Rxf4 {[%clk 0:00:38]} 46. Rc1 {[%clk 0:00:06]}  Kd7 {[%clk 0:00:37]} 47. Rd1+ {[%clk 0:00:04]}  Kc7 {[%clk 0:00:36]} 48. Kb5 {[%clk 0:00:04]}  Rg5+ {[%clk 0:00:36]} 49. Ka6 {[%clk 0:00:02]}  Ra4# {[%clk 0:00:36]} 0-1


[Site "https://www.chess.com"]

[Event "Titled Tuesday Blitz October 11 Early 2022"]
[White "Remizov, Yaroslav"]
[Black "Borgaonkar Akshay"]
[WhiteFideId "34134015"]
[BlackFideId "25639110"]
[WhiteElo "2417"]
[BlackElo "2063"]
[Result "1/2-1/2"]
[Round "08"]
[TimeControl "180+1"]
[Date "2022.10.12"]
[WhiteClock "0:00:32"]
[BlackClock "0:00:19"]

1. e4 {[%clk 0:02:59]}  c5 {[%clk 0:02:59]} 2. Nc3 {[%clk 0:02:59]}  e6 {[%clk 0:02:59]} 3. Nf3 {[%clk 0:02:59]}  Nc6 {[%clk 0:02:59]} 4. Bb5 {[%clk 0:02:59]}  Nd4 {[%clk 0:02:59]} 5. Bc4 {[%clk 0:02:59]}  a6 {[%clk 0:02:57]} 6. d3 {[%clk 0:02:58]}  b5 {[%clk 0:02:54]} 7. Bb3 {[%clk 0:02:58]}  Nxf3+ {[%clk 0:02:53]} 8. Qxf3 {[%clk 0:02:57]}  Bb7 {[%clk 0:02:54]} 9. O-O {[%clk 0:02:56]}  Nf6 {[%clk 0:02:54]} 10. Qg3 {[%clk 0:02:54]}  Rc8 {[%clk 0:02:43]} 11. e5 {[%clk 0:02:50]}  Nh5 {[%clk 0:02:37]} 12. Qg4 {[%clk 0:02:37]}  g6 {[%clk 0:02:37]} 13. a4 {[%clk 0:02:32]}  b4 {[%clk 0:02:35]} 14. Ne4 {[%clk 0:02:32]}  Be7 {[%clk 0:02:29]} 15. Bh6 {[%clk 0:02:14]}  Bxe4 {[%clk 0:02:24]} 16. Qxe4 {[%clk 0:02:11]}  Bf8 {[%clk 0:02:24]} 17. Be3 {[%clk 0:02:05]}  Ng7 {[%clk 0:02:22]} 18. Qb7 {[%clk 0:01:47]}  Nf5 {[%clk 0:02:17]} 19. Qxa6 {[%clk 0:01:47]}  Rc6 {[%clk 0:02:09]} 20. Qc4 {[%clk 0:01:44]}  d5 {[%clk 0:01:58]} 21. exd6 {[%clk 0:01:37]}  Bxd6 {[%clk 0:01:55]} 22. a5 {[%clk 0:01:30]}  O-O {[%clk 0:01:54]} 23. a6 {[%clk 0:01:30]}  Nxe3 {[%clk 0:01:27]} 24. fxe3 {[%clk 0:01:28]}  Qg5 {[%clk 0:01:28]} 25. a7 {[%clk 0:01:25]}  Qxe3+ {[%clk 0:01:15]} 26. Kh1 {[%clk 0:01:24]}  Qe5 {[%clk 0:01:06]} 27. g3 {[%clk 0:01:23]}  Rcc8 {[%clk 0:01:06]} 28. Rae1 {[%clk 0:01:21]}  Qh5 {[%clk 0:01:04]} 29. Rxf7 {[%clk 0:00:33]}  Rxf7 {[%clk 0:00:59]} 30. Qxe6 {[%clk 0:00:32]}  Qf3+ {[%clk 0:00:58]} 31. Kg1 {[%clk 0:00:33]}  Qf2+ {[%clk 0:00:49]} 32. Kh1 {[%clk 0:00:32]}  Qf3+ {[%clk 0:00:25]} 33. Kg1 {[%clk 0:00:32]}  Qf2+ {[%clk 0:00:19]} 34. Kh1 {[%clk 0:00:32]}  Qf3+ {[%clk 0:00:19]} 1/2-1/2


[Site "https://www.chess.com"]

[Event "Titled Tuesday Blitz October 11 Early 2022"]
[White "Rosen, Eric"]
[Black "Tristan, Leonardo"]
[WhiteFideId "2032562"]
[BlackFideId "113816"]
[WhiteElo "2362"]
[BlackElo "2446"]
[Result "1-0"]
[Round "08"]
[TimeControl "180+1"]
[Date "2022.10.11"]
[WhiteClock "0:00:10"]
[BlackClock "0:00:04"]

1. d4 {[%clk 0:03:00]}  d5 {[%clk 0:03:00]} 2. Bf4 {[%clk 0:02:58]}  Nf6 {[%clk 0:03:00]} 3. e3 {[%clk 0:02:55]}  e6 {[%clk 0:03:00]} 4. Nf3 {[%clk 0:02:54]}  Bd6 {[%clk 0:03:00]} 5. Ne5 {[%clk 0:02:55]}  O-O {[%clk 0:03:00]} 6. Nd2 {[%clk 0:02:53]}  b6 {[%clk 0:03:00]} 7. h4 {[%clk 0:02:52]}  c5 {[%clk 0:02:58]} 8. c3 {[%clk 0:02:52]}  Qc7 {[%clk 0:02:58]} 9. h5 {[%clk 0:02:51]}  h6 {[%clk 0:02:58]} 10. Qf3 {[%clk 0:02:50]}  Nc6 {[%clk 0:02:57]} 11. Qg3 {[%clk 0:02:49]}  Ne8 {[%clk 0:02:26]} 12. Bd3 {[%clk 0:02:26]}  f6 {[%clk 0:02:06]} 13. Nxc6 {[%clk 0:02:06]}  Bxf4 {[%clk 0:01:51]} 14. exf4 {[%clk 0:01:54]}  Qxc6 {[%clk 0:01:51]} 15. Nf3 {[%clk 0:01:52]}  Nd6 {[%clk 0:01:36]} 16. O-O-O {[%clk 0:01:41]}  Ne4 {[%clk 0:01:36]} 17. Qg6 {[%clk 0:01:29]}  Bd7 {[%clk 0:01:31]} 18. Rhe1 {[%clk 0:00:52]}  Be8 {[%clk 0:01:29]} 19. Bxe4 {[%clk 0:00:24]}  Bxg6 {[%clk 0:01:28]} 20. Bxg6 {[%clk 0:00:25]}  Rfd8 {[%clk 0:01:20]} 21. Re3 {[%clk 0:00:24]}  Kf8 {[%clk 0:01:03]} 22. Rde1 {[%clk 0:00:24]}  Rd6 {[%clk 0:01:03]} 23. f5 {[%clk 0:00:18]}  Re8 {[%clk 0:00:27]} 24. Bxe8 {[%clk 0:00:17]}  Kxe8 {[%clk 0:00:28]} 25. fxe6 {[%clk 0:00:16]}  a5 {[%clk 0:00:14]} 26. Kb1 {[%clk 0:00:16]}  Qb5 {[%clk 0:00:13]} 27. Nh4 {[%clk 0:00:15]}  cxd4 {[%clk 0:00:14]} 28. cxd4 {[%clk 0:00:15]}  Rc6 {[%clk 0:00:04]} 29. Nf5 {[%clk 0:00:12]}  Qb4 {[%clk 0:00:02]} 30. e7 {[%clk 0:00:09]}  Rc8 {[%clk 0:00:02]} 31. Nxg7+ {[%clk 0:00:09]}  Kf7 {[%clk 0:00:03]} 32. e8=Q+ {[%clk 0:00:08]}  Rxe8 {[%clk 0:00:03]} 33. Nxe8 {[%clk 0:00:09]}  Qxd4 {[%clk 0:00:04]} 34. Nd6+ {[%clk 0:00:10]} 1-0


[Site "https://www.chess.com"]

[Event "Titled Tuesday Blitz October 11 Early 2022"]
[White "Salman, Pavel"]
[Black "Mirzoev, Azer"]
[WhiteFideId "24153753"]
[BlackFideId "13400304"]
[WhiteElo "2187"]
[BlackElo "2525"]
[Result "1/2-1/2"]
[Round "08"]
[TimeControl "180+1"]
[Date "2022.10.12"]
[WhiteClock "0:00:04"]
[BlackClock "0:00:01"]

1. Nf3 {[%clk 0:03:00]}  c5 {[%clk 0:03:00]} 2. g3 {[%clk 0:03:00]}  Nc6 {[%clk 0:02:59]} 3. Bg2 {[%clk 0:03:00]}  g6 {[%clk 0:03:00]} 4. O-O {[%clk 0:03:00]}  Bg7 {[%clk 0:03:01]} 5. d3 {[%clk 0:02:58]}  Nf6 {[%clk 0:02:58]} 6. e4 {[%clk 0:02:59]}  d6 {[%clk 0:02:58]} 7. Nbd2 {[%clk 0:02:57]}  O-O {[%clk 0:02:59]} 8. Re1 {[%clk 0:02:57]}  Rb8 {[%clk 0:02:58]} 9. a4 {[%clk 0:02:57]}  Nd7 {[%clk 0:02:57]} 10. c3 {[%clk 0:02:52]}  a6 {[%clk 0:02:57]} 11. Nf1 {[%clk 0:02:52]}  b5 {[%clk 0:02:56]} 12. axb5 {[%clk 0:02:53]}  axb5 {[%clk 0:02:57]} 13. d4 {[%clk 0:02:47]}  b4 {[%clk 0:02:57]} 14. Bf4 {[%clk 0:02:37]}  bxc3 {[%clk 0:02:37]} 15. bxc3 {[%clk 0:02:38]}  cxd4 {[%clk 0:02:07]} 16. cxd4 {[%clk 0:02:39]}  Rb4 {[%clk 0:02:01]} 17. e5 {[%clk 0:02:27]}  dxe5 {[%clk 0:01:51]} 18. dxe5 {[%clk 0:02:27]}  Nb6 {[%clk 0:01:49]} 19. Ne3 {[%clk 0:01:58]}  Bb7 {[%clk 0:01:40]} 20. Qxd8 {[%clk 0:01:53]}  Rxd8 {[%clk 0:01:39]} 21. Reb1 {[%clk 0:01:54]}  Ra8 {[%clk 0:00:55]} 22. Rxa8+ {[%clk 0:01:01]}  Bxa8 {[%clk 0:00:54]} 23. Ra1 {[%clk 0:01:00]}  h6 {[%clk 0:00:52]} 24. h4 {[%clk 0:00:53]}  Bb7 {[%clk 0:00:52]} 25. Rd1 {[%clk 0:00:30]}  Kh7 {[%clk 0:00:46]} 26. Nc2 {[%clk 0:00:26]}  Rb2 {[%clk 0:00:43]} 27. Ncd4 {[%clk 0:00:27]}  Nxd4 {[%clk 0:00:41]} 28. Rxd4 {[%clk 0:00:25]}  e6 {[%clk 0:00:35]} 29. Rd8 {[%clk 0:00:22]}  Nd5 {[%clk 0:00:26]} 30. Rb8 {[%clk 0:00:17]}  Rb6 {[%clk 0:00:16]} 31. Nd4 {[%clk 0:00:14]}  Ba6 {[%clk 0:00:11]} 32. Rxb6 {[%clk 0:00:12]}  Nxb6 {[%clk 0:00:12]} 33. Nc6 {[%clk 0:00:12]}  Nc4 {[%clk 0:00:11]} 34. Bf1 {[%clk 0:00:12]}  Bb5 {[%clk 0:00:10]} 35. Nd8 {[%clk 0:00:12]}  Kg8 {[%clk 0:00:09]} 36. Nb7 {[%clk 0:00:12]}  Na3 {[%clk 0:00:09]} 37. Nd6 {[%clk 0:00:11]}  Bxf1 {[%clk 0:00:08]} 38. Kxf1 {[%clk 0:00:12]}  Bf8 {[%clk 0:00:07]} 39. Ne4 {[%clk 0:00:12]}  Nb5 {[%clk 0:00:06]} 40. Nf6+ {[%clk 0:00:12]}  Kg7 {[%clk 0:00:06]} 41. Ne8+ {[%clk 0:00:13]}  Kh8 {[%clk 0:00:06]} 42. Ke2 {[%clk 0:00:13]}  Nd4+ {[%clk 0:00:06]} 43. Ke3 {[%clk 0:00:14]}  Nf5+ {[%clk 0:00:06]} 44. Ke4 {[%clk 0:00:13]}  h5 {[%clk 0:00:06]} 45. Nf6 {[%clk 0:00:13]}  Bc5 {[%clk 0:00:05]} 46. f3 {[%clk 0:00:12]}  Bf2 {[%clk 0:00:04]} 47. g4 {[%clk 0:00:07]}  hxg4 {[%clk 0:00:04]} 48. fxg4 {[%clk 0:00:08]}  Nxh4 {[%clk 0:00:04]} 49. Ne8 {[%clk 0:00:09]}  Kg8 {[%clk 0:00:04]} 50. Bh6 {[%clk 0:00:08]}  Be1 {[%clk 0:00:02]} 51. Nf6+ {[%clk 0:00:07]}  Kh8 {[%clk 0:00:02]} 52. Bg5 {[%clk 0:00:07]}  Ng2 {[%clk 0:00:02]} 53. Ne8 {[%clk 0:00:06]}  Bh4 {[%clk 0:00:01]} 54. Bf6+ {[%clk 0:00:05]}  Kg8 {[%clk 0:00:01]} 55. Kf3 {[%clk 0:00:04]}  Ne1+ {[%clk 0:00:01]} 56. Ke2 {[%clk 0:00:04]}  Ng2 {[%clk 0:00:01]} 57. Kf3 {[%clk 0:00:04]}  Ne1+ {[%clk 0:00:01]} 58. Ke2 {[%clk 0:00:04]}  Ng2 {[%clk 0:00:01]} 59. Kf1 {[%clk 0:00:03]}  Ne3+ {[%clk 0:00:01]} 60. Ke2 {[%clk 0:00:04]}  Ng2 {[%clk 0:00:01]} 1/2-1/2


[Site "https://www.chess.com"]

[Event "Titled Tuesday Blitz October 11 Early 2022"]
[White "Samaganova, Aleksandra"]
[Black "Bilan, Danila"]
[WhiteFideId "13800221"]
[BlackFideId "24161918"]
[WhiteElo "1864"]
[BlackElo "2203"]
[Result "1-0"]
[Round "08"]
[TimeControl "180+1"]
[Date "2022.10.12"]
[WhiteClock "0:00:04"]
[BlackClock "0:00:06"]

1. c4 {[%clk 0:03:00]}  c6 {[%clk 0:02:58]} 2. Nf3 {[%clk 0:03:00]}  d5 {[%clk 0:02:59]} 3. e3 {[%clk 0:02:57]}  Nf6 {[%clk 0:02:59]} 4. Nc3 {[%clk 0:02:57]}  e6 {[%clk 0:02:55]} 5. d4 {[%clk 0:02:56]}  Nbd7 {[%clk 0:02:55]} 6. Bd3 {[%clk 0:02:54]}  Bd6 {[%clk 0:02:55]} 7. O-O {[%clk 0:02:54]}  O-O {[%clk 0:02:52]} 8. e4 {[%clk 0:02:52]}  dxc4 {[%clk 0:02:45]} 9. Bxc4 {[%clk 0:02:51]}  e5 {[%clk 0:02:45]} 10. d5 {[%clk 0:02:47]}  Qc7 {[%clk 0:02:32]} 11. dxc6 {[%clk 0:02:38]}  bxc6 {[%clk 0:02:28]} 12. h3 {[%clk 0:02:37]}  Nc5 {[%clk 0:02:22]} 13. Qc2 {[%clk 0:02:32]}  Be6 {[%clk 0:02:15]} 14. Be2 {[%clk 0:02:26]}  a5 {[%clk 0:02:07]} 15. Rd1 {[%clk 0:02:24]}  Nh5 {[%clk 0:01:42]} 16. Be3 {[%clk 0:01:54]}  Nf4 {[%clk 0:01:22]} 17. Bf1 {[%clk 0:01:50]}  f6 {[%clk 0:01:14]} 18. Rac1 {[%clk 0:01:46]}  Qe7 {[%clk 0:01:03]} 19. b3 {[%clk 0:01:33]}  Rfc8 {[%clk 0:00:53]} 20. Nd2 {[%clk 0:01:10]}  Qf7 {[%clk 0:00:46]} 21. Nc4 {[%clk 0:01:02]}  Bf8 {[%clk 0:00:35]} 22. Nb6 {[%clk 0:00:59]}  Qg6 {[%clk 0:00:32]} 23. Bxf4 {[%clk 0:00:49]}  exf4 {[%clk 0:00:33]} 24. f3 {[%clk 0:00:49]}  Bxh3 {[%clk 0:00:23]} 25. Nxa8 {[%clk 0:00:49]}  Rxa8 {[%clk 0:00:23]} 26. Ne2 {[%clk 0:00:36]}  Ne6 {[%clk 0:00:16]} 27. Nd4 {[%clk 0:00:22]}  Bc5 {[%clk 0:00:10]} 28. Bc4 {[%clk 0:00:11]}  Kh8 {[%clk 0:00:05]} 29. Bxe6 {[%clk 0:00:11]}  Bxd4+ {[%clk 0:00:02]} 30. Rxd4 {[%clk 0:00:11]}  Bxe6 {[%clk 0:00:03]} 31. Qxc6 {[%clk 0:00:10]}  Re8 {[%clk 0:00:04]} 32. Rcd1 {[%clk 0:00:05]}  h5 {[%clk 0:00:03]} 33. Qc5 {[%clk 0:00:05]}  Rd8 {[%clk 0:00:04]} 34. Rxd8+ {[%clk 0:00:04]}  Kh7 {[%clk 0:00:04]} 35. R8d2 {[%clk 0:00:04]}  h4 {[%clk 0:00:04]} 36. Qf2 {[%clk 0:00:04]}  Qg5 {[%clk 0:00:04]} 37. Kf1 {[%clk 0:00:03]}  h3 {[%clk 0:00:04]} 38. Ke2 {[%clk 0:00:03]}  hxg2 {[%clk 0:00:03]} 39. Rg1 {[%clk 0:00:03]}  Bh3 {[%clk 0:00:03]} 40. Ke1 {[%clk 0:00:03]}  Qb5 {[%clk 0:00:04]} 41. Rxg2 {[%clk 0:00:03]}  Bxg2 {[%clk 0:00:04]} 42. Qxg2 {[%clk 0:00:04]}  Qb4 {[%clk 0:00:05]} 43. Qh2+ {[%clk 0:00:04]}  Kg8 {[%clk 0:00:05]} 44. Qxf4 {[%clk 0:00:04]}  Qd4 {[%clk 0:00:06]} 45. Rxd4 {[%clk 0:00:04]} 1-0


[Site "https://www.chess.com"]